[Event "*** Titled Tuesday Blitz"]
[Site "Chess.com"]
[Date "2020.05.12"]
[Round "1"]
[White "DaggiGretarsson"]
[Black "Caisachess"]
[Result "0-1"]
[WhiteElo "2587"]
[BlackElo "2303"]
[TimeControl "180+1"]
[EndTime "10:07:40 PDT"]
[Termination "Caisachess won on time"]

1. d4 {[%clk 0:03:00.9]} 1... Nf6 {[%clk 0:02:59.2]} 2. c4 {[%clk 0:03:00.3]}
2... e6 {[%clk 0:02:59.3]} 3. Nf3 {[%clk 0:02:59.1]} 3... d5 {[%clk 0:02:56.9]}
4. Nc3 {[%clk 0:02:58]} 4... Bb4 {[%clk 0:02:56.3]} 5. Qa4+ {[%clk 0:02:56.8]}
5... Nc6 {[%clk 0:02:55.7]} 6. cxd5 {[%clk 0:02:55]} 6... exd5 {[%clk
0:02:55.3]} 7. Bg5 {[%clk 0:02:54.7]} 7... h6 {[%clk 0:02:54.7]} 8. Bxf6 {[%clk
0:02:54]} 8... Qxf6 {[%clk 0:02:55.6]} 9. e3 {[%clk 0:02:54]} 9... O-O {[%clk
0:02:54.9]} 10. Be2 {[%clk 0:02:53.5]} 10... Be6 {[%clk 0:02:55.4]} 11. O-O
{[%clk 0:02:52.5]} 11... a6 {[%clk 0:02:55.2]} 12. Qb3 {[%clk 0:02:51.9]} 12...
Bd6 {[%clk 0:02:53.5]} 13. Nxd5 {[%clk 0:02:09]} 13... Qf5 {[%clk 0:02:36.8]}
14. e4 {[%clk 0:01:49.2]} 14... Qxe4 {[%clk 0:02:31.1]} 15. Nc3 {[%clk
0:01:48.8]} 15... Qf4 {[%clk 0:02:18.9]} 16. Qd1 {[%clk 0:01:40.5]} 16... Rad8
{[%clk 0:02:11.8]} 17. d5 {[%clk 0:01:29.5]} 17... Bb4 {[%clk 0:02:02.4]} 18. g3
{[%clk 0:01:27.9]} 18... Qf5 {[%clk 0:01:49]} 19. Nh4 {[%clk 0:01:20.8]} 19...
Qh3 {[%clk 0:01:47.2]} 20. Bf3 {[%clk 0:01:17.4]} 20... Ne7 {[%clk 0:01:29.7]}
21. Bg2 {[%clk 0:01:13.5]} 21... Qg4 {[%clk 0:01:29.1]} 22. Qb3 {[%clk
0:01:08.2]} 22... Bc8 {[%clk 0:01:16.1]} 23. h3 {[%clk 0:00:56.6]} 23... Qd4
{[%clk 0:01:11.8]} 24. Rad1 {[%clk 0:00:55.7]} 24... Qc5 {[%clk 0:01:06.4]} 25.
Ne4 {[%clk 0:00:49.8]} 25... Qb5 {[%clk 0:01:02.9]} 26. a4 {[%clk 0:00:40.9]}
26... Qa5 {[%clk 0:01:01]} 27. Rd4 {[%clk 0:00:40.5]} 27... Bd6 {[%clk
0:00:55.8]} 28. Nxd6 {[%clk 0:00:36.1]} 28... Rxd6 {[%clk 0:00:55.3]} 29. Rc1
{[%clk 0:00:35.2]} 29... Rfd8 {[%clk 0:00:54]} 30. Rdc4 {[%clk 0:00:29]} 30...
Nxd5 {[%clk 0:00:50.8]} 31. Bxd5 {[%clk 0:00:24.8]} 31... Rxd5 {[%clk
0:00:51.7]} 32. Rxc7 {[%clk 0:00:24.5]} 32... Bxh3 {[%clk 0:00:49]} 33. Qxb7
{[%clk 0:00:21.4]} 33... Be6 {[%clk 0:00:44.1]} 34. Qb3 {[%clk 0:00:04.3]} 34...
Rd1+ {[%clk 0:00:32]} 35. Rxd1 {[%clk 0:00:03.3]} 35... Qxc7 {[%clk 0:00:23]}
36. Rxd8+ {[%clk 0:00:02.7]} 36... Qxd8 {[%clk 0:00:23.9]} 37. Qc2 {[%clk
0:00:02.6]} 37... Qd4 {[%clk 0:00:20]} 38. Ng2 {[%clk 0:00:02]} 38... Bd5 {[%clk
0:00:19.7]} 39. Ne3 {[%clk 0:00:02.1]} 39... Bb7 {[%clk 0:00:18.8]} 40. Qb3
{[%clk 0:00:01.8]} 40... Qe4 {[%clk 0:00:18.1]} 41. Kf1 {[%clk 0:00:01.9]} 41...
h5 {[%clk 0:00:15.8]} 42. Ke2 {[%clk 0:00:01.7]} 42... Qf3+ {[%clk 0:00:15.1]}
43. Ke1 {[%clk 0:00:01.3]} 43... Be4 {[%clk 0:00:11.5]} 0-1

[Event "*** Titled Tuesday Blitz"]
[Site "Chess.com"]
[Date "2020.05.12"]
[Round "1"]
[White "bilelou"]
[Black "Klavdia_Nik"]
[Result "1-0"]
[WhiteElo "2494"]
[BlackElo "2070"]
[TimeControl "180+1"]
[EndTime "10:07:40 PDT"]
[Termination "bilelou won on time"]

1. e4 {[%clk 0:02:58.6]} 1... e5 {[%clk 0:02:55.9]} 2. Nf3 {[%clk 0:02:56.6]}
2... Nc6 {[%clk 0:02:55.6]} 3. Bb5 {[%clk 0:02:57.2]} 3... a6 {[%clk 0:02:54.8]}
4. Ba4 {[%clk 0:02:57.7]} 4... Nf6 {[%clk 0:02:54.8]} 5. O-O {[%clk 0:02:58.4]}
5... Be7 {[%clk 0:02:54.7]} 6. d3 {[%clk 0:02:59]} 6... b5 {[%clk 0:02:54.3]} 7.
Bb3 {[%clk 0:02:54.2]} 7... d6 {[%clk 0:02:53.3]} 8. a3 {[%clk 0:02:54.3]} 8...
O-O {[%clk 0:02:53]} 9. Nc3 {[%clk 0:02:54.7]} 9... h6 {[%clk 0:02:49.1]} 10. h3
{[%clk 0:02:53.5]} 10... Bb7 {[%clk 0:02:48.7]} 11. Be3 {[%clk 0:02:52.1]} 11...
Re8 {[%clk 0:02:47.8]} 12. Qd2 {[%clk 0:02:47.4]} 12... Bf8 {[%clk 0:02:47.2]}
13. Nd5 {[%clk 0:02:47.5]} 13... a5 {[%clk 0:02:26.8]} 14. a4 {[%clk 0:02:45]}
14... b4 {[%clk 0:02:26.5]} 15. c3 {[%clk 0:02:45.1]} 15... bxc3 {[%clk
0:02:15.5]} 16. bxc3 {[%clk 0:02:46]} 16... Rb8 {[%clk 0:02:14.4]} 17. Rab1
{[%clk 0:02:44.9]} 17... Ba6 {[%clk 0:02:05.6]} 18. Rfd1 {[%clk 0:02:28]} 18...
Nd7 {[%clk 0:01:53.6]} 19. Qa2 {[%clk 0:02:18.9]} 19... Nf6 {[%clk 0:01:44.7]}
20. Bc4 {[%clk 0:02:12.3]} 20... Bxc4 {[%clk 0:01:34]} 21. Qxc4 {[%clk
0:02:13.2]} 21... Nxd5 {[%clk 0:01:21.7]} 22. Qxd5 {[%clk 0:02:00.2]} 22... Qd7
{[%clk 0:01:15.8]} 23. Nd2 {[%clk 0:02:00.3]} 23... Ne7 {[%clk 0:01:01.3]} 24.
Qxa5 {[%clk 0:01:53.4]} 24... Ra8 {[%clk 0:01:01.1]} 25. Qb5 {[%clk 0:01:53.2]}
25... c6 {[%clk 0:00:55.9]} 26. Qb3 {[%clk 0:01:51.2]} 26... Reb8 {[%clk
0:00:53.4]} 27. Qxb8 {[%clk 0:01:43.3]} 27... Rxb8 {[%clk 0:00:52.6]} 28. Rxb8
{[%clk 0:01:44.2]} 28... c5 {[%clk 0:00:51.9]} 29. Ra1 {[%clk 0:01:42.9]} 29...
Nc6 {[%clk 0:00:47.2]} 30. Rb5 {[%clk 0:01:40.1]} 30... Be7 {[%clk 0:00:43.8]}
31. Nc4 {[%clk 0:01:39.4]} 31... Bd8 {[%clk 0:00:40.6]} 32. a5 {[%clk
0:01:20.9]} 32... Nxa5 {[%clk 0:00:27.1]} 33. Rbxa5 {[%clk 0:01:18]} 33... Bxa5
{[%clk 0:00:27.3]} 34. Rxa5 {[%clk 0:01:18.9]} 34... f5 {[%clk 0:00:22.6]} 35.
f3 {[%clk 0:01:15.3]} 35... fxe4 {[%clk 0:00:21.8]} 36. fxe4 {[%clk 0:01:13.1]}
36... d5 {[%clk 0:00:16.5]} 37. Nb6 {[%clk 0:00:51.2]} 37... Qc6 {[%clk
0:00:08.8]} 38. Rxc5 {[%clk 0:00:47.8]} 38... Qg6 {[%clk 0:00:07]} 39. Nxd5
{[%clk 0:00:45.6]} 39... Qh5 {[%clk 0:00:06.2]} 40. Kh2 {[%clk 0:00:42.3]} 40...
Qe2 {[%clk 0:00:04.3]} 41. d4 {[%clk 0:00:41.7]} 41... exd4 {[%clk 0:00:03.3]}
42. cxd4 {[%clk 0:00:42.3]} 42... Kh7 {[%clk 0:00:01.5]} 43. e5 {[%clk 0:00:42]}
43... h5 {[%clk 0:00:01.7]} 44. e6 {[%clk 0:00:36.8]} 44... h4 {[%clk
0:00:01.2]} 45. e7 {[%clk 0:00:36.9]} 45... Qe1 {[%clk 0:00:01.4]} 46. Rc1
{[%clk 0:00:28.8]} 46... Qg3+ {[%clk 0:00:01.1]} 47. Kh1 {[%clk 0:00:28.7]}
47... Qb8 {[%clk 0:00:01.1]} 48. Re1 {[%clk 0:00:27.1]} 1-0

[Event "*** Titled Tuesday Blitz"]
[Site "Chess.com"]
[Date "2020.05.12"]
[Round "1"]
[White "ketster"]
[Black "RobertoJBM"]
[Result "0-1"]
[WhiteElo "2275"]
[BlackElo "2590"]
[TimeControl "180+1"]
[EndTime "10:07:41 PDT"]
[Termination "RobertoJBM won on time"]

1. d4 {[%clk 0:02:59]} 1... d5 {[%clk 0:02:53.9]} 2. c4 {[%clk 0:02:58.5]} 2...
e6 {[%clk 0:02:51.3]} 3. Nc3 {[%clk 0:02:57.7]} 3... Be7 {[%clk 0:02:49.7]} 4.
cxd5 {[%clk 0:02:57]} 4... exd5 {[%clk 0:02:49.5]} 5. Bf4 {[%clk 0:02:57.5]}
5... c6 {[%clk 0:02:49.4]} 6. e3 {[%clk 0:02:57.2]} 6... Bf5 {[%clk 0:02:49.5]}
7. g4 {[%clk 0:02:56.8]} 7... Be6 {[%clk 0:02:49.3]} 8. h3 {[%clk 0:02:55.3]}
8... Bd6 {[%clk 0:02:47.5]} 9. Nge2 {[%clk 0:02:52.9]} 9... Ne7 {[%clk
0:02:47.1]} 10. Bxd6 {[%clk 0:02:47.2]} 10... Qxd6 {[%clk 0:02:47]} 11. Nf4
{[%clk 0:02:47.7]} 11... Qb4 {[%clk 0:02:44]} 12. Qd2 {[%clk 0:02:44.9]} 12...
Nd7 {[%clk 0:02:43.1]} 13. Bd3 {[%clk 0:02:42.4]} 13... g5 {[%clk 0:02:28.9]}
14. Nxe6 {[%clk 0:02:32.2]} 14... fxe6 {[%clk 0:02:29.8]} 15. O-O-O {[%clk
0:02:19.5]} 15... O-O-O {[%clk 0:02:22.4]} 16. h4 {[%clk 0:01:59.6]} 16... h6
{[%clk 0:02:17.4]} 17. Ne2 {[%clk 0:01:47]} 17... Qxd2+ {[%clk 0:02:13]} 18.
Kxd2 {[%clk 0:01:46.3]} 18... e5 {[%clk 0:02:13.9]} 19. hxg5 {[%clk 0:01:33]}
19... hxg5 {[%clk 0:02:12.2]} 20. Ng3 {[%clk 0:01:32.5]} 20... e4 {[%clk
0:01:38.6]} 21. Bc2 {[%clk 0:01:16.2]} 21... Nf6 {[%clk 0:01:36.8]} 22. f3
{[%clk 0:00:48.5]} 22... exf3 {[%clk 0:01:31.1]} 23. Rdf1 {[%clk 0:00:42.2]}
23... Nxg4 {[%clk 0:01:21]} 24. Rxh8 {[%clk 0:00:37.1]} 24... Rxh8 {[%clk
0:01:19.7]} 25. Rxf3 {[%clk 0:00:37.5]} 25... Rh2+ {[%clk 0:01:14.4]} 26. Kc3
{[%clk 0:00:36.6]} 26... Rf2 {[%clk 0:01:04.2]} 27. Rxf2 {[%clk 0:00:32.9]}
27... Nxf2 {[%clk 0:01:05.1]} 28. Kd2 {[%clk 0:00:30.3]} 28... Ng4 {[%clk
0:01:01.8]} 29. Ke2 {[%clk 0:00:25.3]} 29... Nf6 {[%clk 0:00:57.3]} 30. Kf3
{[%clk 0:00:24.4]} 30... Kd7 {[%clk 0:00:56.9]} 31. Nf5 {[%clk 0:00:18.8]} 31...
Nxf5 {[%clk 0:00:54.6]} 32. Bxf5+ {[%clk 0:00:18.2]} 32... Kd6 {[%clk
0:00:55.5]} 33. Bc8 {[%clk 0:00:18]} 33... b6 {[%clk 0:00:55.5]} 34. Bf5 {[%clk
0:00:15.5]} 34... c5 {[%clk 0:00:55]} 35. Bd3 {[%clk 0:00:14.1]} 35... c4 {[%clk
0:00:44.8]} 36. Bc2 {[%clk 0:00:14.2]} 36... b5 {[%clk 0:00:45]} 37. Kg3 {[%clk
0:00:12.7]} 37... a5 {[%clk 0:00:43.9]} 38. a3 {[%clk 0:00:11.9]} 38... b4
{[%clk 0:00:43.7]} 39. axb4 {[%clk 0:00:11.9]} 39... axb4 {[%clk 0:00:44.6]} 40.
Kf3 {[%clk 0:00:11.5]} 40... Kc6 {[%clk 0:00:42.9]} 41. Ba4+ {[%clk 0:00:10.5]}
41... Kb6 {[%clk 0:00:42.6]} 42. Bc2 {[%clk 0:00:09.1]} 42... b3 {[%clk
0:00:40.4]} 43. Bb1 {[%clk 0:00:07.2]} 43... Kb5 {[%clk 0:00:40.7]} 44. Kg3
{[%clk 0:00:05.5]} 44... Kb4 {[%clk 0:00:40.8]} 45. Kf3 {[%clk 0:00:06]} 45...
c3 {[%clk 0:00:40.5]} 46. bxc3+ {[%clk 0:00:06.4]} 46... Kxc3 {[%clk 0:00:41.4]}
47. Ke2 {[%clk 0:00:04.4]} 47... Kb2 {[%clk 0:00:30.7]} 48. Bd3 {[%clk
0:00:04.3]} 48... Kc1 {[%clk 0:00:30.8]} 49. Ke1 {[%clk 0:00:02.8]} 49... b2
{[%clk 0:00:30.9]} 0-1

[Event "*** Titled Tuesday Blitz"]
[Site "Chess.com"]
[Date "2020.05.12"]
[Round "1"]
[White "Konek-Gorbunok"]
[Black "Alohamora11"]
[Result "1-0"]
[WhiteElo "2163"]
[BlackElo "2497"]
[TimeControl "180+1"]
[EndTime "10:07:42 PDT"]
[Termination "Konek-Gorbunok won by checkmate"]

1. d4 {[%clk 0:03:00.2]} 1... Nf6 {[%clk 0:02:57.6]} 2. Nf3 {[%clk 0:03:01.1]}
2... c5 {[%clk 0:02:58.2]} 3. c4 {[%clk 0:03:00.5]} 3... g6 {[%clk 0:02:56.9]}
4. Nc3 {[%clk 0:03:00]} 4... cxd4 {[%clk 0:02:55.7]} 5. Nxd4 {[%clk 0:02:58.4]}
5... Nc6 {[%clk 0:02:56.6]} 6. e3 {[%clk 0:02:58.6]} 6... Bg7 {[%clk 0:02:56.4]}
7. Be2 {[%clk 0:02:58.8]} 7... O-O {[%clk 0:02:57.1]} 8. O-O {[%clk 0:02:58.8]}
8... Nxd4 {[%clk 0:02:51]} 9. exd4 {[%clk 0:02:59.7]} 9... d5 {[%clk 0:02:51.6]}
10. c5 {[%clk 0:02:59.9]} 10... b6 {[%clk 0:02:47.1]} 11. b4 {[%clk 0:02:59.9]}
11... a5 {[%clk 0:02:47]} 12. b5 {[%clk 0:02:59.6]} 12... bxc5 {[%clk
0:02:40.5]} 13. dxc5 {[%clk 0:03:00.5]} 13... Ne4 {[%clk 0:02:40.5]} 14. Nxe4
{[%clk 0:03:00.5]} 14... Bxa1 {[%clk 0:02:40.7]} 15. Bh6 {[%clk 0:03:00.4]}
15... Bg7 {[%clk 0:02:34.2]} 16. Bxg7 {[%clk 0:03:00]} 16... Kxg7 {[%clk
0:02:35.1]} 17. Qd4+ {[%clk 0:02:59.3]} 17... e5 {[%clk 0:02:18]} 18. Qxe5+
{[%clk 0:02:41.2]} 18... f6 {[%clk 0:02:17.5]} 19. Nxf6 {[%clk 0:02:31.4]} 19...
Qxf6 {[%clk 0:02:01]} 20. Qxd5 {[%clk 0:02:19.6]} 20... Be6 {[%clk 0:01:57.8]}
21. Qd2 {[%clk 0:02:09.9]} 21... Rfd8 {[%clk 0:01:53.4]} 22. Qc2 {[%clk
0:02:04.9]} 22... Bf5 {[%clk 0:01:49.5]} 23. Qc1 {[%clk 0:02:00.5]} 23... Bd3
{[%clk 0:01:43.6]} 24. Bxd3 {[%clk 0:01:53]} 24... Rxd3 {[%clk 0:01:44.5]} 25.
c6 {[%clk 0:01:52.5]} 25... Rc3 {[%clk 0:01:28.1]} 26. Qd2 {[%clk 0:01:33.5]}
26... Rd8 {[%clk 0:01:27.1]} 27. Qe2 {[%clk 0:01:32.3]} 27... a4 {[%clk
0:01:09.7]} 28. g3 {[%clk 0:01:15.1]} 28... Rc5 {[%clk 0:01:00.3]} 29. Rb1
{[%clk 0:01:03.2]} 29... Rb8 {[%clk 0:00:40.5]} 30. Rb4 {[%clk 0:00:26.6]} 30...
Rb6 {[%clk 0:00:29.6]} 31. Rd4 {[%clk 0:00:20.5]} 31... Qxd4 {[%clk 0:00:28.3]}
32. Qe7+ {[%clk 0:00:19.8]} 32... Kh6 {[%clk 0:00:20.5]} 33. Qf8+ {[%clk
0:00:19.5]} 33... Kh5 {[%clk 0:00:15.5]} 34. Qe7 {[%clk 0:00:09.5]} 34... Rc1+
{[%clk 0:00:09.5]} 35. Kg2 {[%clk 0:00:08.6]} 35... Qd5+ {[%clk 0:00:09.8]} 36.
Kh3 {[%clk 0:00:07.8]} 36... Qf5+ {[%clk 0:00:09.3]} 37. Kg2 {[%clk 0:00:07.3]}
37... Qd5+ {[%clk 0:00:08.8]} 38. Kh3 {[%clk 0:00:07.1]} 38... Rc3 {[%clk
0:00:05]} 39. Qh4# {[%clk 0:00:05.7]} 1-0

[Event "*** Titled Tuesday Blitz"]
[Site "Chess.com"]
[Date "2020.05.12"]
[Round "1"]
[White "Flawless_Fighter"]
[Black "HouseOfDurin"]
[Result "1-0"]
[WhiteElo "2480"]
[BlackElo "1989"]
[TimeControl "180+1"]
[EndTime "10:07:42 PDT"]
[Termination "Flawless_Fighter won on time"]

1. e4 {[%clk 0:03:00.9]} 1... c5 {[%clk 0:02:59.1]} 2. Nf3 {[%clk 0:03:00.1]}
2... Nc6 {[%clk 0:02:59.6]} 3. Bb5 {[%clk 0:02:58.9]} 3... g6 {[%clk 0:02:59.3]}
4. Bxc6 {[%clk 0:02:58.4]} 4... bxc6 {[%clk 0:03:00.2]} 5. O-O {[%clk
0:02:57.2]} 5... Bg7 {[%clk 0:03:00.6]} 6. Re1 {[%clk 0:02:56.8]} 6... e5 {[%clk
0:03:00.9]} 7. c3 {[%clk 0:02:52.6]} 7... Ne7 {[%clk 0:03:01.2]} 8. d4 {[%clk
0:02:53.1]} 8... cxd4 {[%clk 0:03:01.5]} 9. cxd4 {[%clk 0:02:54]} 9... exd4
{[%clk 0:03:00.5]} 10. Nxd4 {[%clk 0:02:46.1]} 10... O-O {[%clk 0:03:00.1]} 11.
Nc3 {[%clk 0:02:46]} 11... Rb8 {[%clk 0:02:42.4]} 12. Nb3 {[%clk 0:02:41.9]}
12... d5 {[%clk 0:02:35.6]} 13. exd5 {[%clk 0:02:34.6]} 13... Nxd5 {[%clk
0:02:33.8]} 14. Nxd5 {[%clk 0:02:30.4]} 14... Qxd5 {[%clk 0:02:33.6]} 15. Bf4
{[%clk 0:02:28.4]} 15... Rb7 {[%clk 0:02:11.5]} 16. Qxd5 {[%clk 0:02:26.6]}
16... cxd5 {[%clk 0:02:11.1]} 17. Be5 {[%clk 0:02:27.3]} 17... d4 {[%clk
0:01:28]} 18. Rad1 {[%clk 0:02:18.6]} 18... Be6 {[%clk 0:00:53.4]} 19. Bxg7
{[%clk 0:01:39.8]} 19... Bxb3 {[%clk 0:00:38.7]} 20. Bxf8 {[%clk 0:01:30.1]}
20... Bxd1 {[%clk 0:00:38.1]} 21. Bc5 {[%clk 0:00:51.2]} 21... Bg4 {[%clk
0:00:24.4]} 22. Bxd4 {[%clk 0:00:51.1]} 22... Be6 {[%clk 0:00:22.2]} 23. b3
{[%clk 0:00:44.5]} 23... a6 {[%clk 0:00:18.9]} 24. Bf6 {[%clk 0:00:35.4]} 24...
Rb8 {[%clk 0:00:14.9]} 25. Rd1 {[%clk 0:00:30]} 25... Ra8 {[%clk 0:00:12]} 26.
h3 {[%clk 0:00:20.8]} 26... h5 {[%clk 0:00:11.7]} 27. Rd4 {[%clk 0:00:17.8]}
27... Kf8 {[%clk 0:00:11.6]} 28. Kh2 {[%clk 0:00:13.7]} 28... Ke8 {[%clk
0:00:11.6]} 29. Kg3 {[%clk 0:00:13.3]} 29... Bd7 {[%clk 0:00:07]} 30. Kf4 {[%clk
0:00:11.9]} 30... Be6 {[%clk 0:00:05.4]} 31. Kg5 {[%clk 0:00:10.1]} 31... Kf8
{[%clk 0:00:05.5]} 32. Kh6 {[%clk 0:00:09.8]} 32... Kg8 {[%clk 0:00:05.6]} 33.
Rd6 {[%clk 0:00:06.8]} 33... Bf5 {[%clk 0:00:04.8]} 34. Rb6 {[%clk 0:00:05.9]}
34... Be6 {[%clk 0:00:04.9]} 35. f3 {[%clk 0:00:05.4]} 35... Bf5 {[%clk
0:00:04.9]} 36. g4 {[%clk 0:00:04.7]} 36... hxg4 {[%clk 0:00:04.7]} 37. hxg4
{[%clk 0:00:05.6]} 37... Be6 {[%clk 0:00:05.1]} 38. Rd6 {[%clk 0:00:05.2]} 38...
Kf8 {[%clk 0:00:01.4]} 39. Kg5 {[%clk 0:00:04.4]} 39... Kg8 {[%clk 0:00:01.3]}
40. f4 {[%clk 0:00:04.8]} 40... Kf8 {[%clk 0:00:01.4]} 41. f5 {[%clk 0:00:04.7]}
41... gxf5 {[%clk 0:00:01.3]} 42. gxf5 {[%clk 0:00:05.6]} 1-0

[Event "*** Titled Tuesday Blitz"]
[Site "Chess.com"]
[Date "2020.05.12"]
[Round "1"]
[White "Man-Chuk"]
[Black "GrafLermontov"]
[Result "1-0"]
[WhiteElo "2716"]
[BlackElo "2377"]
[TimeControl "180+1"]
[EndTime "10:07:43 PDT"]
[Termination "Man-Chuk won by resignation"]

1. d4 {[%clk 0:02:57.2]} 1... Nf6 {[%clk 0:02:59.4]} 2. c4 {[%clk 0:02:56.8]}
2... g6 {[%clk 0:02:59.5]} 3. Nc3 {[%clk 0:02:56]} 3... d5 {[%clk 0:02:59.9]} 4.
cxd5 {[%clk 0:02:54.9]} 4... Nxd5 {[%clk 0:03:00.8]} 5. e4 {[%clk 0:02:55.6]}
5... Nxc3 {[%clk 0:03:01]} 6. bxc3 {[%clk 0:02:56.5]} 6... Bg7 {[%clk
0:03:01.6]} 7. Be3 {[%clk 0:02:56.8]} 7... c5 {[%clk 0:03:01.9]} 8. Nf3 {[%clk
0:02:56]} 8... Qa5 {[%clk 0:02:59.5]} 9. Qd2 {[%clk 0:02:56]} 9... cxd4 {[%clk
0:02:59.8]} 10. cxd4 {[%clk 0:02:56.9]} 10... Qxd2+ {[%clk 0:03:00.3]} 11. Nxd2
{[%clk 0:02:57]} 11... Nc6 {[%clk 0:02:58.7]} 12. Nb3 {[%clk 0:02:55]} 12... O-O
{[%clk 0:02:58.7]} 13. Rc1 {[%clk 0:02:51.9]} 13... Rd8 {[%clk 0:02:38.5]} 14.
d5 {[%clk 0:02:49.9]} 14... Ne5 {[%clk 0:02:30.5]} 15. Be2 {[%clk 0:02:45.9]}
15... Ng4 {[%clk 0:02:22.3]} 16. Bc5 {[%clk 0:02:27.5]} 16... Bf8 {[%clk
0:01:38.5]} 17. O-O {[%clk 0:02:14]} 17... Nf6 {[%clk 0:01:34.2]} 18. f3 {[%clk
0:02:04]} 18... e6 {[%clk 0:01:33.5]} 19. Bxf8 {[%clk 0:02:02.8]} 19... Kxf8
{[%clk 0:01:32.2]} 20. d6 {[%clk 0:01:56]} 20... e5 {[%clk 0:01:20.4]} 21. Rfd1
{[%clk 0:01:55.4]} 21... Ne8 {[%clk 0:01:10.1]} 22. Rxc8 {[%clk 0:01:08.6]}
22... Raxc8 {[%clk 0:00:50.9]} 23. d7 {[%clk 0:01:08.8]} 23... Rc2 {[%clk
0:00:50.9]} 24. dxe8=Q+ {[%clk 0:01:08.7]} 24... Kxe8 {[%clk 0:00:51.8]} 25.
Bb5+ {[%clk 0:01:04.2]} 25... Ke7 {[%clk 0:00:51.7]} 26. Ra1 {[%clk 0:01:04]}
26... a6 {[%clk 0:00:50.7]} 27. Bf1 {[%clk 0:01:03.7]} 27... f5 {[%clk
0:00:42.2]} 28. a4 {[%clk 0:00:58.5]} 28... fxe4 {[%clk 0:00:39]} 29. fxe4
{[%clk 0:00:58.8]} 29... Rdc8 {[%clk 0:00:34.2]} 30. Rb1 {[%clk 0:00:49.4]}
30... b5 {[%clk 0:00:11.6]} 31. axb5 {[%clk 0:00:48.1]} 31... axb5 {[%clk
0:00:12.5]} 32. Bxb5 {[%clk 0:00:35]} 32... Rb8 {[%clk 0:00:12.6]} 33. Bf1
{[%clk 0:00:33.8]} 33... Rc3 {[%clk 0:00:10.4]} 34. Nd2 {[%clk 0:00:32.8]} 34...
Rxb1 {[%clk 0:00:09.8]} 35. Nxb1 {[%clk 0:00:33.7]} 35... Rc2 {[%clk 0:00:09]}
36. Bd3 {[%clk 0:00:30]} 36... Rb2 {[%clk 0:00:07.1]} 37. Nc3 {[%clk 0:00:29.8]}
37... Kf6 {[%clk 0:00:07.6]} 38. h4 {[%clk 0:00:28.8]} 38... h6 {[%clk
0:00:07.1]} 39. Nd5+ {[%clk 0:00:28.7]} 39... Kg7 {[%clk 0:00:06.4]} 40. Kf1
{[%clk 0:00:23.7]} 40... h5 {[%clk 0:00:06]} 41. Be2 {[%clk 0:00:23.8]} 41...
Rb1+ {[%clk 0:00:05.7]} 42. Kf2 {[%clk 0:00:24]} 42... Rb3 {[%clk 0:00:06.6]}
43. g3 {[%clk 0:00:22.7]} 43... Kh6 {[%clk 0:00:07.1]} 44. Bc4 {[%clk
0:00:22.3]} 44... g5 {[%clk 0:00:07.6]} 45. Bxb3 {[%clk 0:00:20.3]} 45... gxh4
{[%clk 0:00:05.9]} 46. gxh4 {[%clk 0:00:20.1]} 1-0

[Event "*** Titled Tuesday Blitz"]
[Site "Chess.com"]
[Date "2020.05.12"]
[Round "1"]
[White "Quattroporte300"]
[Black "Leonid_Starozhilov"]
[Result "0-1"]
[WhiteElo "2337"]
[BlackElo "2660"]
[TimeControl "180+1"]
[EndTime "10:07:43 PDT"]
[Termination "Leonid_Starozhilov won by resignation"]

1. e4 {[%clk 0:03:00.1]} 1... g6 {[%clk 0:02:59.6]} 2. d4 {[%clk 0:02:59]} 2...
Bg7 {[%clk 0:03:00.4]} 3. Nc3 {[%clk 0:02:59]} 3... c6 {[%clk 0:03:01]} 4. f4
{[%clk 0:02:57.4]} 4... d5 {[%clk 0:03:01.4]} 5. e5 {[%clk 0:02:57.9]} 5... h5
{[%clk 0:03:01.2]} 6. Be2 {[%clk 0:02:57.3]} 6... Nh6 {[%clk 0:03:00.5]} 7. Nf3
{[%clk 0:02:55]} 7... Bg4 {[%clk 0:03:00.6]} 8. Be3 {[%clk 0:02:52.4]} 8... Nf5
{[%clk 0:03:00.6]} 9. Bf2 {[%clk 0:02:51.3]} 9... e6 {[%clk 0:02:58.8]} 10. Qd2
{[%clk 0:02:49]} 10... Nd7 {[%clk 0:02:55.3]} 11. O-O-O {[%clk 0:02:42.8]} 11...
Qa5 {[%clk 0:02:54.9]} 12. Kb1 {[%clk 0:02:41.3]} 12... Nb6 {[%clk 0:02:49]} 13.
h3 {[%clk 0:02:39.6]} 13... Bxf3 {[%clk 0:02:48.7]} 14. Bxf3 {[%clk 0:02:35.2]}
14... Nc4 {[%clk 0:02:48.5]} 15. Qc1 {[%clk 0:01:59]} 15... h4 {[%clk
0:02:45.6]} 16. Be2 {[%clk 0:01:43.1]} 16... b5 {[%clk 0:02:09.9]} 17. Bxc4
{[%clk 0:01:10.3]} 17... bxc4 {[%clk 0:02:07.1]} 18. Qd2 {[%clk 0:00:57.1]}
18... Rb8 {[%clk 0:02:02.6]} 19. Ka1 {[%clk 0:00:46.9]} 19... Bf8 {[%clk
0:01:31.3]} 20. Ne4 {[%clk 0:00:44.2]} 20... Qxd2 {[%clk 0:01:28.6]} 21. Nf6+
{[%clk 0:00:40.6]} 21... Kd8 {[%clk 0:01:28.9]} 22. Rxd2 {[%clk 0:00:41.2]}
22... Be7 {[%clk 0:01:29.1]} 23. Ng4 {[%clk 0:00:37.1]} 23... Kd7 {[%clk
0:01:25]} 24. Ne3 {[%clk 0:00:33.1]} 24... a5 {[%clk 0:01:16.9]} 25. Nxf5 {[%clk
0:00:26.5]} 25... gxf5 {[%clk 0:01:16.5]} 26. b3 {[%clk 0:00:17.7]} 26... Bb4
{[%clk 0:01:09.4]} 27. Re2 {[%clk 0:00:17.6]} 27... a4 {[%clk 0:01:09.8]} 28.
Be1 {[%clk 0:00:14.5]} 28... axb3 {[%clk 0:01:04.2]} 29. Bxb4 {[%clk 0:00:13.8]}
29... Rxb4 {[%clk 0:01:04.6]} 30. axb3 {[%clk 0:00:11.9]} 30... cxb3 {[%clk
0:01:04.6]} 31. c3 {[%clk 0:00:12.2]} 31... Ra8+ {[%clk 0:00:56.7]} 32. Kb2
{[%clk 0:00:05.1]} 32... Ra2+ {[%clk 0:00:36.3]} 33. Kb1 {[%clk 0:00:04.2]}
33... Rxe2 {[%clk 0:00:28.5]} 34. cxb4 {[%clk 0:00:05.1]} 34... Rxg2 {[%clk
0:00:28.7]} 35. Rc1 {[%clk 0:00:01.8]} 35... Rg3 {[%clk 0:00:23.2]} 36. Kb2
{[%clk 0:00:02.2]} 36... Rxh3 {[%clk 0:00:23.1]} 37. Rg1 {[%clk 0:00:02.8]}
37... Rg3 {[%clk 0:00:22.8]} 38. Rh1 {[%clk 0:00:03.3]} 38... h3 {[%clk
0:00:23.1]} 39. Ra1 {[%clk 0:00:03.2]} 39... h2 {[%clk 0:00:14.8]} 40. Rh1
{[%clk 0:00:03.1]} 40... Rh3 {[%clk 0:00:15]} 41. Kc1 {[%clk 0:00:02.7]} 41...
Kc7 {[%clk 0:00:15.1]} 42. Kb2 {[%clk 0:00:03]} 42... Kb6 {[%clk 0:00:15.6]} 43.
Kb1 {[%clk 0:00:03.5]} 43... Kb5 {[%clk 0:00:15.9]} 44. Kb2 {[%clk 0:00:04.2]}
44... Kxb4 {[%clk 0:00:16.5]} 45. Kb1 {[%clk 0:00:03.8]} 45... Kc4 {[%clk
0:00:14.3]} 0-1